[Event "Titled Tuesday Blitz November 08 Early 2022"]
[White "Kuchava, Ana"]
[Black "Sovetbekova, Nurai"]
[WhiteFideId "13605348"]
[BlackFideId "13801910"]
[WhiteElo "2001"]
[BlackElo "1925"]
[Result "1-0"]
[Round "05"]
[TimeControl "180+1"]
[Date "2022.11.09"]
[WhiteClock "0:00:24"]
[BlackClock "0:00:05"]

1. d4 {[%clk 0:02:54]}  Nf6 {[%clk 0:02:57]} 2. c4 {[%clk 0:02:51]}  g6 {[%clk 0:02:55]} 3. Nc3 {[%clk 0:02:50]}  d5 {[%clk 0:02:55]} 4. Nf3 {[%clk 0:02:48]}  Bg7 {[%clk 0:02:55]} 5. Bg5 {[%clk 0:02:43]}  Ne4 {[%clk 0:02:52]} 6. Bf4 {[%clk 0:02:43]}  Nxc3 {[%clk 0:02:51]} 7. bxc3 {[%clk 0:02:42]}  O-O {[%clk 0:02:47]} 8. e3 {[%clk 0:02:41]}  c5 {[%clk 0:02:37]} 9. cxd5 {[%clk 0:02:39]}  Qxd5 {[%clk 0:02:36]} 10. Be2 {[%clk 0:02:39]}  Nc6 {[%clk 0:02:33]} 11. O-O {[%clk 0:02:38]}  Rd8 {[%clk 0:02:09]} 12. Qa4 {[%clk 0:02:28]}  cxd4 {[%clk 0:01:30]} 13. cxd4 {[%clk 0:02:29]}  Bd7 {[%clk 0:01:30]} 14. Bc4 {[%clk 0:02:07]}  Nxd4 {[%clk 0:01:03]} 15. Bxd5 {[%clk 0:01:46]}  Bxa4 {[%clk 0:00:25]} 16. Bxf7+ {[%clk 0:01:34]}  Kxf7 {[%clk 0:00:24]} 17. Ng5+ {[%clk 0:01:27]}  Kg8 {[%clk 0:00:20]} 18. exd4 {[%clk 0:01:26]}  Bxd4 {[%clk 0:00:20]} 19. Rab1 {[%clk 0:01:26]}  Bc6 {[%clk 0:00:19]} 20. Ne6 {[%clk 0:01:24]}  Rd5 {[%clk 0:00:13]} 21. Nc7 {[%clk 0:01:22]}  Rdd8 {[%clk 0:00:12]} 22. Nxa8 {[%clk 0:01:21]}  Rxa8 {[%clk 0:00:13]} 23. Be3 {[%clk 0:01:18]}  Bf6 {[%clk 0:00:13]} 24. Rfd1 {[%clk 0:01:13]}  Kf7 {[%clk 0:00:13]} 25. f3 {[%clk 0:01:07]}  Rc8 {[%clk 0:00:12]} 26. Rd2 {[%clk 0:01:03]}  Bc3 {[%clk 0:00:11]} 27. Rc2 {[%clk 0:00:54]}  Bf6 {[%clk 0:00:09]} 28. Rbc1 {[%clk 0:00:52]}  a6 {[%clk 0:00:09]} 29. Kf2 {[%clk 0:00:52]}  Rd8 {[%clk 0:00:09]} 30. Rd2 {[%clk 0:00:49]}  Rc8 {[%clk 0:00:09]} 31. Rcd1 {[%clk 0:00:48]}  h5 {[%clk 0:00:09]} 32. Rd8 {[%clk 0:00:47]}  Bh4+ {[%clk 0:00:09]} 33. g3 {[%clk 0:00:47]}  Rxd8 {[%clk 0:00:09]} 34. Rxd8 {[%clk 0:00:47]}  Bf6 {[%clk 0:00:10]} 35. Bc5 {[%clk 0:00:42]}  Ke6 {[%clk 0:00:09]} 36. Ke3 {[%clk 0:00:40]}  Bg5+ {[%clk 0:00:07]} 37. f4 {[%clk 0:00:39]}  Bf6 {[%clk 0:00:08]} 38. Rg8 {[%clk 0:00:39]}  Kf7 {[%clk 0:00:08]} 39. Rb8 {[%clk 0:00:38]}  Ke6 {[%clk 0:00:07]} 40. Bd4 {[%clk 0:00:36]}  Bd5 {[%clk 0:00:04]} 41. Bxf6 {[%clk 0:00:36]}  exf6 {[%clk 0:00:05]} 42. a3 {[%clk 0:00:35]}  Bc6 {[%clk 0:00:05]} 43. Kd4 {[%clk 0:00:35]}  Kf7 {[%clk 0:00:05]} 44. Kc5 {[%clk 0:00:33]}  Be4 {[%clk 0:00:04]} 45. Kb6 {[%clk 0:00:32]}  g5 {[%clk 0:00:04]} 46. fxg5 {[%clk 0:00:31]}  fxg5 {[%clk 0:00:05]} 47. a4 {[%clk 0:00:29]}  Ke7 {[%clk 0:00:04]} 48. a5 {[%clk 0:00:29]}  Kd7 {[%clk 0:00:04]} 49. Rg8 {[%clk 0:00:27]}  h4 {[%clk 0:00:03]} 50. Rxg5 {[%clk 0:00:25]}  hxg3 {[%clk 0:00:04]} 51. hxg3 {[%clk 0:00:24]}  Bc6 {[%clk 0:00:04]} 52. Rg7+ {[%clk 0:00:24]}  Ke6 {[%clk 0:00:05]} 53. g4 {[%clk 0:00:24]}  Kf6 {[%clk 0:00:05]} 54. Rxb7 {[%clk 0:00:23]}  Bxb7 {[%clk 0:00:05]} 55. Kxb7 {[%clk 0:00:24]} 1-0


[Site "https://www.chess.com"]

[Event "Titled Tuesday Blitz November 08 Early 2022"]
[White "Kuznetsova, Olga"]
[Black "Dahlgren, James Allen"]
[WhiteFideId "4191323"]
[BlackFideId "22256873"]
[WhiteElo "2134"]
[BlackElo "2210"]
[Result "1-0"]
[Round "05"]
[TimeControl "180+1"]
[Date "2022.11.09"]
[WhiteClock "0:01:32"]
[BlackClock "0:01:21"]

1. d4 {[%clk 0:03:00]}  e6 {[%clk 0:02:59]} 2. g3 {[%clk 0:02:58]}  c5 {[%clk 0:02:56]} 3. Bg2 {[%clk 0:02:57]}  Nf6 {[%clk 0:02:51]} 4. Nf3 {[%clk 0:02:57]}  d5 {[%clk 0:02:41]} 5. O-O {[%clk 0:02:56]}  Nc6 {[%clk 0:02:33]} 6. c3 {[%clk 0:02:55]}  Bd6 {[%clk 0:02:29]} 7. dxc5 {[%clk 0:02:53]}  Bxc5 {[%clk 0:02:27]} 8. b4 {[%clk 0:02:54]}  Bb6 {[%clk 0:02:27]} 9. Bb2 {[%clk 0:02:51]}  O-O {[%clk 0:02:27]} 10. e3 {[%clk 0:02:46]}  e5 {[%clk 0:02:23]} 11. b5 {[%clk 0:02:26]}  e4 {[%clk 0:02:23]} 12. bxc6 {[%clk 0:02:25]}  exf3 {[%clk 0:02:23]} 13. Bxf3 {[%clk 0:02:17]}  bxc6 {[%clk 0:02:22]} 14. c4 {[%clk 0:02:08]}  Ba6 {[%clk 0:02:17]} 15. Nd2 {[%clk 0:02:07]}  Rb8 {[%clk 0:02:12]} 16. Qc2 {[%clk 0:02:05]}  dxc4 {[%clk 0:01:55]} 17. Nxc4 {[%clk 0:02:04]}  Bxc4 {[%clk 0:01:48]} 18. Qxc4 {[%clk 0:02:00]}  Nd5 {[%clk 0:01:31]} 19. Rad1 {[%clk 0:01:52]}  Nxe3 {[%clk 0:01:27]} 20. fxe3 {[%clk 0:01:48]}  Bxe3+ {[%clk 0:01:27]} 21. Kh1 {[%clk 0:01:48]}  Qg5 {[%clk 0:01:24]} 22. Bc1 {[%clk 0:01:40]}  Bxc1 {[%clk 0:01:20]} 23. Qxc1 {[%clk 0:01:37]}  Rb2 {[%clk 0:01:21]} 24. Qxg5 {[%clk 0:01:32]} 1-0


[Site "https://www.chess.com"]

[Event "Titled Tuesday Blitz November 08 Early 2022"]
[White "Lawson, Eric"]
[Black "Grandelius, Nils"]
[WhiteFideId "2604116"]
[BlackFideId "1710400"]
[WhiteElo "2515"]
[BlackElo "2617"]
[Result "0-1"]
[Round "05"]
[TimeControl "180+1"]
[Date "2022.11.09"]
[WhiteClock "0:00:49"]
[BlackClock "0:00:25"]

1. d4 {[%clk 0:03:00]}  f5 {[%clk 0:02:56]} 2. Bg5 {[%clk 0:02:58]}  g6 {[%clk 0:02:53]} 3. Nc3 {[%clk 0:02:56]}  Bg7 {[%clk 0:02:52]} 4. e4 {[%clk 0:02:56]}  fxe4 {[%clk 0:02:50]} 5. Nxe4 {[%clk 0:02:56]}  d5 {[%clk 0:02:49]} 6. Nc3 {[%clk 0:02:44]}  Nf6 {[%clk 0:02:34]} 7. Nf3 {[%clk 0:02:41]}  Bg4 {[%clk 0:02:30]} 8. Be2 {[%clk 0:02:37]}  Bxf3 {[%clk 0:02:28]} 9. Bxf3 {[%clk 0:02:37]}  c6 {[%clk 0:02:28]} 10. h4 {[%clk 0:02:37]}  Qb6 {[%clk 0:02:20]} 11. Na4 {[%clk 0:02:35]}  Qa5+ {[%clk 0:02:13]} 12. c3 {[%clk 0:02:34]}  Nbd7 {[%clk 0:02:13]} 13. b4 {[%clk 0:02:33]}  Qc7 {[%clk 0:02:13]} 14. h5 {[%clk 0:02:32]}  Rg8 {[%clk 0:01:57]} 15. hxg6 {[%clk 0:02:31]}  hxg6 {[%clk 0:01:58]} 16. Rb1 {[%clk 0:02:20]}  e5 {[%clk 0:01:46]} 17. Nc5 {[%clk 0:02:07]}  Nxc5 {[%clk 0:01:38]} 18. bxc5 {[%clk 0:02:06]}  O-O-O {[%clk 0:01:35]} 19. Qa4 {[%clk 0:01:58]}  Kb8 {[%clk 0:01:33]} 20. Rh4 {[%clk 0:01:54]}  Rde8 {[%clk 0:01:25]} 21. Kf1 {[%clk 0:01:52]}  Rh8 {[%clk 0:01:06]} 22. dxe5 {[%clk 0:01:36]}  Nd7 {[%clk 0:00:56]} 23. e6 {[%clk 0:01:29]}  Nxc5 {[%clk 0:00:53]} 24. Qa3 {[%clk 0:01:13]}  Nxe6 {[%clk 0:00:50]} 25. Rxh8 {[%clk 0:01:02]}  Rxh8 {[%clk 0:00:51]} 26. Be7 {[%clk 0:01:02]}  Rh1+ {[%clk 0:00:43]} 27. Ke2 {[%clk 0:01:02]}  Qe5+ {[%clk 0:00:42]} 28. Kd2 {[%clk 0:00:57]}  Qf4+ {[%clk 0:00:28]} 29. Ke2 {[%clk 0:00:57]}  Qe5+ {[%clk 0:00:26]} 30. Kd2 {[%clk 0:00:57]}  Bh6+ {[%clk 0:00:26]} 31. Kd3 {[%clk 0:00:49]}  Qf5+ {[%clk 0:00:25]} 32. Ke2 {[%clk 0:00:49]}  Qc2# {[%clk 0:00:25]} 0-1


[Site "https://www.chess.com"]

[Event "Titled Tuesday Blitz November 08 Early 2022"]
[White "Le, Tuan Minh"]
[Black "Salinas Herrera, Pablo"]
[WhiteFideId "12401153"]
[BlackFideId "3407128"]
[WhiteElo "2530"]
[BlackElo "2557"]
[Result "0-1"]
[Round "05"]
[TimeControl "180+1"]
[Date "2022.11.08"]
[WhiteClock "0:00:05"]
[BlackClock "0:00:13"]

1. d4 {[%clk 0:03:00]}  g6 {[%clk 0:02:57]} 2. e4 {[%clk 0:02:57]}  Bg7 {[%clk 0:02:57]} 3. Nf3 {[%clk 0:02:58]}  d6 {[%clk 0:02:57]} 4. Bc4 {[%clk 0:02:58]}  Nf6 {[%clk 0:02:52]} 5. Nc3 {[%clk 0:02:57]}  O-O {[%clk 0:02:51]} 6. O-O {[%clk 0:02:57]}  Nxe4 {[%clk 0:02:51]} 7. Nxe4 {[%clk 0:02:58]}  d5 {[%clk 0:02:51]} 8. Bd3 {[%clk 0:02:59]}  dxe4 {[%clk 0:02:52]} 9. Bxe4 {[%clk 0:03:00]}  Nd7 {[%clk 0:02:49]} 10. c3 {[%clk 0:03:00]}  c5 {[%clk 0:02:49]} 11. Bc2 {[%clk 0:02:44]}  Qc7 {[%clk 0:02:42]} 12. Re1 {[%clk 0:02:41]}  e6 {[%clk 0:02:42]} 13. Bg5 {[%clk 0:02:34]}  b6 {[%clk 0:02:31]} 14. Be4 {[%clk 0:01:38]}  Bb7 {[%clk 0:02:30]} 15. Qe2 {[%clk 0:01:35]}  Rac8 {[%clk 0:02:14]} 16. Rad1 {[%clk 0:01:32]}  Rfe8 {[%clk 0:02:02]} 17. Bf4 {[%clk 0:01:21]}  Qxf4 {[%clk 0:01:52]} 18. Bxb7 {[%clk 0:01:21]}  Rc7 {[%clk 0:01:51]} 19. Ba6 {[%clk 0:01:21]}  Nf6 {[%clk 0:01:32]} 20. g3 {[%clk 0:01:19]}  Qd6 {[%clk 0:01:26]} 21. Bb5 {[%clk 0:01:15]}  Rf8 {[%clk 0:01:20]} 22. dxc5 {[%clk 0:01:10]}  Qxc5 {[%clk 0:01:20]} 23. Ne5 {[%clk 0:01:10]}  Rfc8 {[%clk 0:00:53]} 24. c4 {[%clk 0:01:02]}  Qe7 {[%clk 0:00:44]} 25. Qf3 {[%clk 0:01:00]}  Ne8 {[%clk 0:00:35]} 26. Qf4 {[%clk 0:00:46]}  Rd8 {[%clk 0:00:20]} 27. Nc6 {[%clk 0:00:28]}  Rxc6 {[%clk 0:00:20]} 28. Bxc6 {[%clk 0:00:29]}  Bxb2 {[%clk 0:00:17]} 29. h4 {[%clk 0:00:17]}  Nd6 {[%clk 0:00:15]} 30. h5 {[%clk 0:00:15]}  Nf5 {[%clk 0:00:11]} 31. Be4 {[%clk 0:00:11]}  Nd4 {[%clk 0:00:10]} 32. Kg2 {[%clk 0:00:11]}  Ba3 {[%clk 0:00:07]} 33. hxg6 {[%clk 0:00:11]}  hxg6 {[%clk 0:00:07]} 34. Bxg6 {[%clk 0:00:09]}  Bb4 {[%clk 0:00:06]} 35. Bh7+ {[%clk 0:00:03]}  Kg7 {[%clk 0:00:03]} 36. Rh1 {[%clk 0:00:04]}  Qf6 {[%clk 0:00:02]} 37. Qg4+ {[%clk 0:00:04]}  Kf8 {[%clk 0:00:02]} 38. Be4 {[%clk 0:00:04]}  Bc5 {[%clk 0:00:03]} 39. Rh7 {[%clk 0:00:04]}  Ke7 {[%clk 0:00:03]} 40. Qh4 {[%clk 0:00:03]}  Rf8 {[%clk 0:00:02]} 41. Qxf6+ {[%clk 0:00:03]}  Kxf6 {[%clk 0:00:02]} 42. Rh4 {[%clk 0:00:03]}  Ke5 {[%clk 0:00:03]} 43. Bd3 {[%clk 0:00:03]}  f5 {[%clk 0:00:03]} 44. f4+ {[%clk 0:00:03]}  Kd6 {[%clk 0:00:04]} 45. Be2 {[%clk 0:00:04]}  Rg8 {[%clk 0:00:04]} 46. Bf3 {[%clk 0:00:04]}  Ke7 {[%clk 0:00:04]} 47. Rh7+ {[%clk 0:00:04]}  Kf6 {[%clk 0:00:04]} 48. Bh5 {[%clk 0:00:05]}  Rg7 {[%clk 0:00:03]} 49. Rxg7 {[%clk 0:00:05]}  Kxg7 {[%clk 0:00:04]} 50. g4 {[%clk 0:00:05]}  Kf6 {[%clk 0:00:04]} 51. g5+ {[%clk 0:00:05]}  Kg7 {[%clk 0:00:05]} 52. Bf3 {[%clk 0:00:05]}  Kg6 {[%clk 0:00:05]} 53. Bb7 {[%clk 0:00:04]}  e5 {[%clk 0:00:05]} 54. fxe5 {[%clk 0:00:04]}  Kxg5 {[%clk 0:00:05]} 55. Bd5 {[%clk 0:00:05]}  f4 {[%clk 0:00:06]} 56. e6 {[%clk 0:00:05]}  Kf6 {[%clk 0:00:06]} 57. Rh1 {[%clk 0:00:04]}  f3+ {[%clk 0:00:06]} 58. Kg3 {[%clk 0:00:03]}  a5 {[%clk 0:00:05]} 59. Kg4 {[%clk 0:00:03]}  f2 {[%clk 0:00:05]} 60. Kg3 {[%clk 0:00:02]}  Nf5+ {[%clk 0:00:05]} 61. Kf3 {[%clk 0:00:02]}  Ke5 {[%clk 0:00:03]} 62. Ke2 {[%clk 0:00:01]}  Ng3+ {[%clk 0:00:03]} 63. Kf3 {[%clk 0:00:01]}  Nxh1 {[%clk 0:00:04]} 64. Kg2 {[%clk 0:00:01]}  f1=Q+ {[%clk 0:00:03]} 65. Kxf1 {[%clk 0:00:01]}  Ng3+ {[%clk 0:00:04]} 66. Kg2 {[%clk 0:00:02]}  Nf5 {[%clk 0:00:05]} 67. Kf3 {[%clk 0:00:02]}  Ne7 {[%clk 0:00:06]} 68. Bb7 {[%clk 0:00:02]}  Kxe6 {[%clk 0:00:06]} 69. Ke4 {[%clk 0:00:03]}  Kd6 {[%clk 0:00:07]} 70. Ba6 {[%clk 0:00:03]}  Nc6 {[%clk 0:00:07]} 71. Bb5 {[%clk 0:00:03]}  Nb4 {[%clk 0:00:08]} 72. a4 {[%clk 0:00:04]}  Nc2 {[%clk 0:00:08]} 73. Kd3 {[%clk 0:00:04]}  Nd4 {[%clk 0:00:08]} 74. Be8 {[%clk 0:00:04]}  Ke5 {[%clk 0:00:09]} 75. Bh5 {[%clk 0:00:04]}  Kf4 {[%clk 0:00:09]} 76. Be8 {[%clk 0:00:05]}  Ne6 {[%clk 0:00:09]} 77. Bd7 {[%clk 0:00:05]}  Ke5 {[%clk 0:00:10]} 78. Bc8 {[%clk 0:00:05]}  Nf4+ {[%clk 0:00:10]} 79. Kc3 {[%clk 0:00:05]}  Ke4 {[%clk 0:00:11]} 80. Bb7+ {[%clk 0:00:05]}  Ke3 {[%clk 0:00:12]} 81. Bc6 {[%clk 0:00:05]}  Ne2+ {[%clk 0:00:12]} 82. Kb2 {[%clk 0:00:05]}  Nd4 {[%clk 0:00:13]} 83. Kc3 {[%clk 0:00:05]}  Nxc6 {[%clk 0:00:13]} 0-1


[Site "https://www.chess.com"]

[Event "Titled Tuesday Blitz November 08 Early 2022"]
[White "Levitan, Caleb Levi"]
[Black "Firat, Burak"]
[WhiteFideId "14332620"]
[BlackFideId "6305881"]
[WhiteElo "1963"]
[BlackElo "2392"]
[Result "0-1"]
[Round "05"]
[TimeControl "180+1"]
[Date "2022.11.09"]
[WhiteClock "0:00:03"]
[BlackClock "0:01:26"]

1. e4 {[%clk 0:03:00]}  c5 {[%clk 0:02:58]} 2. Nf3 {[%clk 0:03:00]}  e6 {[%clk 0:02:58]} 3. d4 {[%clk 0:02:59]}  cxd4 {[%clk 0:02:59]} 4. Nxd4 {[%clk 0:02:59]}  a6 {[%clk 0:02:59]} 5. c4 {[%clk 0:02:58]}  Nf6 {[%clk 0:02:59]} 6. Nc3 {[%clk 0:02:58]}  Qc7 {[%clk 0:03:00]} 7. Qd3 {[%clk 0:02:51]}  h5 {[%clk 0:02:57]} 8. Be2 {[%clk 0:02:45]}  Ng4 {[%clk 0:02:46]} 9. Bxg4 {[%clk 0:01:45]}  hxg4 {[%clk 0:02:47]} 10. g3 {[%clk 0:01:42]}  d6 {[%clk 0:02:37]} 11. Be3 {[%clk 0:01:38]}  Nd7 {[%clk 0:02:37]} 12. O-O-O {[%clk 0:01:23]}  Ne5 {[%clk 0:02:36]} 13. Qc2 {[%clk 0:01:09]}  Qxc4 {[%clk 0:02:33]} 14. Bf4 {[%clk 0:01:05]}  Be7 {[%clk 0:02:28]} 15. Nb3 {[%clk 0:00:32]}  Bd7 {[%clk 0:02:25]} 16. Rd4 {[%clk 0:00:21]}  Qc7 {[%clk 0:02:24]} 17. Rhd1 {[%clk 0:00:20]}  Rd8 {[%clk 0:02:12]} 18. Bxe5 {[%clk 0:00:14]}  dxe5 {[%clk 0:02:13]} 19. R4d3 {[%clk 0:00:14]}  Rxh2 {[%clk 0:02:10]} 20. Kb1 {[%clk 0:00:14]}  Qb6 {[%clk 0:01:48]} 21. R3d2 {[%clk 0:00:08]}  Bc6 {[%clk 0:01:40]} 22. Rxd8+ {[%clk 0:00:07]}  Bxd8 {[%clk 0:01:40]} 23. Rd2 {[%clk 0:00:07]}  Bg5 {[%clk 0:01:40]} 24. Re2 {[%clk 0:00:07]}  Be7 {[%clk 0:01:40]} 25. Qd3 {[%clk 0:00:06]}  a5 {[%clk 0:01:28]} 26. a4 {[%clk 0:00:05]}  Qxb3 {[%clk 0:01:28]} 27. Re1 {[%clk 0:00:03]}  Rxf2 {[%clk 0:01:26]} 28. Rd1 {[%clk 0:00:03]}  Qxb2# {[%clk 0:01:26]} 0-1


[Site "https://www.chess.com"]

[Event "Titled Tuesday Blitz November 08 Early 2022"]
[White "Lucas, Arthur"]
[Black "Dominguez Perez, Leinier"]
[WhiteFideId "26093073"]
[BlackFideId "3503240"]
[WhiteElo "2251"]
[BlackElo "2647"]
[Result "0-1"]
[Round "05"]
[TimeControl "180+1"]
[Date "2022.11.09"]
[WhiteClock "0:00:03"]
[BlackClock "0:01:20"]

1. e4 {[%clk 0:03:00]}  c5 {[%clk 0:02:58]} 2. Nc3 {[%clk 0:03:00]}  d6 {[%clk 0:02:58]} 3. Nf3 {[%clk 0:02:59]}  Nf6 {[%clk 0:02:58]} 4. d4 {[%clk 0:03:00]}  cxd4 {[%clk 0:02:58]} 5. Nxd4 {[%clk 0:03:01]}  a6 {[%clk 0:02:59]} 6. Rg1 {[%clk 0:03:00]}  h5 {[%clk 0:02:58]} 7. Bg5 {[%clk 0:02:59]}  e6 {[%clk 0:02:55]} 8. Qd2 {[%clk 0:02:47]}  Nbd7 {[%clk 0:02:52]} 9. f4 {[%clk 0:02:47]}  Qc7 {[%clk 0:02:50]} 10. O-O-O {[%clk 0:02:45]}  b5 {[%clk 0:02:49]} 11. Bd3 {[%clk 0:02:42]}  Bb7 {[%clk 0:02:48]} 12. Qe1 {[%clk 0:02:21]}  Be7 {[%clk 0:02:47]} 13. Kb1 {[%clk 0:02:19]}  b4 {[%clk 0:02:46]} 14. Na4 {[%clk 0:01:57]}  Nc5 {[%clk 0:02:39]} 15. Qxb4 {[%clk 0:01:37]}  Ncxe4 {[%clk 0:02:34]} 16. Bxf6 {[%clk 0:01:24]}  Nxf6 {[%clk 0:02:33]} 17. f5 {[%clk 0:01:12]}  e5 {[%clk 0:02:33]} 18. Nb3 {[%clk 0:01:04]}  a5 {[%clk 0:02:28]} 19. Qb6 {[%clk 0:00:58]}  Bd8 {[%clk 0:02:17]} 20. Bb5+ {[%clk 0:00:55]}  Ke7 {[%clk 0:02:17]} 21. Rxd6 {[%clk 0:00:20]}  Qxb6 {[%clk 0:02:12]} 22. Rxb6 {[%clk 0:00:21]}  Bxb6 {[%clk 0:02:11]} 23. Nxb6 {[%clk 0:00:22]}  Ra7 {[%clk 0:02:06]} 24. a4 {[%clk 0:00:19]}  h4 {[%clk 0:02:04]} 25. c4 {[%clk 0:00:15]}  Be4+ {[%clk 0:01:57]} 26. Ka2 {[%clk 0:00:15]}  Bxf5 {[%clk 0:01:57]} 27. Re1 {[%clk 0:00:16]}  Be4 {[%clk 0:01:51]} 28. Nc5 {[%clk 0:00:10]}  Bxg2 {[%clk 0:01:50]} 29. Ka3 {[%clk 0:00:06]}  e4 {[%clk 0:01:49]} 30. b4 {[%clk 0:00:06]}  axb4+ {[%clk 0:01:48]} 31. Kxb4 {[%clk 0:00:07]}  h3 {[%clk 0:01:44]} 32. a5 {[%clk 0:00:06]}  Rb8 {[%clk 0:01:37]} 33. Na6 {[%clk 0:00:04]}  Rd8 {[%clk 0:01:34]} 34. Kc5 {[%clk 0:00:02]}  Ng4 {[%clk 0:01:29]} 35. Nb4 {[%clk 0:00:02]}  Ne5 {[%clk 0:01:24]} 36. Nc6+ {[%clk 0:00:02]}  Nxc6 {[%clk 0:01:24]} 37. Kxc6 {[%clk 0:00:02]}  Rxa5 {[%clk 0:01:23]} 38. Kc7 {[%clk 0:00:03]}  Rd4 {[%clk 0:01:22]} 39. Nd5+ {[%clk 0:00:01]}  Rxd5 {[%clk 0:01:20]} 40. cxd5 {[%clk 0:00:02]}  Rxb5 {[%clk 0:01:20]} 41. d6+ {[%clk 0:00:03]}  Ke6 {[%clk 0:01:20]} 42. d7 {[%clk 0:00:03]}  Rc5+ {[%clk 0:01:20]} 43. Kb6 {[%clk 0:00:03]}  Rd5 {[%clk 0:01:20]} 0-1


[Site "https://www.chess.com"]

[Event "Titled Tuesday Blitz November 08 Early 2022"]
[White "Manukian, Artak"]
[Black "Wagner, Dennis"]
[WhiteFideId "13301373"]
[BlackFideId "24650684"]
[WhiteElo "2130"]
[BlackElo "2470"]
[Result "0-1"]
[Round "05"]
[TimeControl "180+1"]
[Date "2022.11.09"]
[WhiteClock "0:00:03"]
[BlackClock "0:00:29"]

1. e4 {[%clk 0:02:51]}  e5 {[%clk 0:02:33]} 2. Nf3 {[%clk 0:02:50]}  Nc6 {[%clk 0:02:32]} 3. d4 {[%clk 0:02:51]}  exd4 {[%clk 0:02:32]} 4. Nxd4 {[%clk 0:02:51]}  Nf6 {[%clk 0:02:28]} 5. Nxc6 {[%clk 0:02:51]}  bxc6 {[%clk 0:02:29]} 6. e5 {[%clk 0:02:48]}  Qe7 {[%clk 0:02:29]} 7. Qe2 {[%clk 0:02:47]}  Nd5 {[%clk 0:02:30]} 8. c4 {[%clk 0:02:47]}  Nb6 {[%clk 0:02:30]} 9. b3 {[%clk 0:02:47]}  Qe6 {[%clk 0:02:17]} 10. Nc3 {[%clk 0:02:45]}  Bb4 {[%clk 0:02:17]} 11. Bb2 {[%clk 0:02:45]}  a5 {[%clk 0:02:16]} 12. a4 {[%clk 0:02:41]}  O-O {[%clk 0:02:14]} 13. O-O-O {[%clk 0:02:29]}  d6 {[%clk 0:02:09]} 14. exd6 {[%clk 0:02:28]}  cxd6 {[%clk 0:02:09]} 15. Qxe6 {[%clk 0:02:26]}  Bxe6 {[%clk 0:02:10]} 16. Bd3 {[%clk 0:02:09]}  d5 {[%clk 0:02:10]} 17. cxd5 {[%clk 0:02:05]}  cxd5 {[%clk 0:02:07]} 18. Nb5 {[%clk 0:01:55]}  Nd7 {[%clk 0:01:53]} 19. Kb1 {[%clk 0:01:44]}  Nc5 {[%clk 0:01:51]} 20. Bc2 {[%clk 0:01:44]}  Ne4 {[%clk 0:01:46]} 21. Bxe4 {[%clk 0:01:38]}  dxe4 {[%clk 0:01:46]} 22. Nd4 {[%clk 0:01:28]}  Bd5 {[%clk 0:01:33]} 23. Ka2 {[%clk 0:01:26]}  Rac8 {[%clk 0:01:28]} 24. Nf5 {[%clk 0:01:15]}  Rfd8 {[%clk 0:01:13]} 25. Ne3 {[%clk 0:00:53]}  Be6 {[%clk 0:01:11]} 26. Rxd8+ {[%clk 0:00:51]}  Rxd8 {[%clk 0:01:12]} 27. Rd1 {[%clk 0:00:50]}  Rc8 {[%clk 0:01:10]} 28. Rc1 {[%clk 0:00:44]}  Rd8 {[%clk 0:00:51]} 29. Rd1 {[%clk 0:00:43]}  Rb8 {[%clk 0:00:49]} 30. Nc4 {[%clk 0:00:20]}  f5 {[%clk 0:00:45]} 31. Ba3 {[%clk 0:00:16]}  Kf7 {[%clk 0:00:36]} 32. Bxb4 {[%clk 0:00:16]}  Bxc4 {[%clk 0:00:36]} 33. bxc4 {[%clk 0:00:08]}  Rxb4 {[%clk 0:00:35]} 34. Rc1 {[%clk 0:00:07]}  Rxa4+ {[%clk 0:00:33]} 35. Kb3 {[%clk 0:00:07]}  Rb4+ {[%clk 0:00:34]} 36. Kc3 {[%clk 0:00:07]}  Rb8 {[%clk 0:00:30]} 37. c5 {[%clk 0:00:06]}  Ke6 {[%clk 0:00:30]} 38. Kc4 {[%clk 0:00:06]}  Rb4+ {[%clk 0:00:30]} 39. Kc3 {[%clk 0:00:04]}  Kd5 {[%clk 0:00:31]} 40. Ra1 {[%clk 0:00:04]}  Rb5 {[%clk 0:00:31]} 41. Kd2 {[%clk 0:00:03]}  Rxc5 {[%clk 0:00:31]} 42. Ke3 {[%clk 0:00:04]}  Ke5 {[%clk 0:00:31]} 43. Ra3 {[%clk 0:00:03]}  f4+ {[%clk 0:00:31]} 44. Ke2 {[%clk 0:00:03]}  g5 {[%clk 0:00:29]} 45. h4 {[%clk 0:00:03]}  gxh4 {[%clk 0:00:29]} 0-1


[Site "https://www.chess.com"]

[Event "Titled Tuesday Blitz November 08 Early 2022"]
[White "Melikhov, Evgeny V."]
[Black "Gurevich, Dmitry"]
[WhiteFideId "4122046"]
[BlackFideId "2000407"]
[WhiteElo "2169"]
[BlackElo "2506"]
[Result "0-1"]
[Round "05"]
[TimeControl "180+1"]
[Date "2022.11.09"]
[WhiteClock "0:00:04"]
[BlackClock "0:01:10"]

1. d4 {[%clk 0:02:57]}  Nf6 {[%clk 0:02:59]} 2. c4 {[%clk 0:02:57]}  a6 {[%clk 0:02:59]} 3. Nc3 {[%clk 0:02:56]}  c5 {[%clk 0:02:59]} 4. d5 {[%clk 0:02:53]}  b5 {[%clk 0:02:59]} 5. Nf3 {[%clk 0:02:43]}  b4 {[%clk 0:02:59]} 6. Na4 {[%clk 0:02:41]}  d6 {[%clk 0:02:58]} 7. b3 {[%clk 0:02:34]}  g6 {[%clk 0:02:57]} 8. a3 {[%clk 0:02:29]}  a5 {[%clk 0:02:52]} 9. axb4 {[%clk 0:02:25]}  axb4 {[%clk 0:02:52]} 10. Ra2 {[%clk 0:02:07]}  Bg7 {[%clk 0:02:49]} 11. Qc2 {[%clk 0:01:59]}  Bf5 {[%clk 0:02:45]} 12. Qd2 {[%clk 0:01:35]}  O-O {[%clk 0:02:37]} 13. Bb2 {[%clk 0:01:25]}  Ne4 {[%clk 0:02:33]} 14. Qc1 {[%clk 0:01:24]}  Bxb2 {[%clk 0:02:17]} 15. Rxb2 {[%clk 0:01:17]}  Nc3 {[%clk 0:02:07]} 16. Nxc3 {[%clk 0:01:05]}  bxc3 {[%clk 0:02:07]} 17. Qxc3 {[%clk 0:01:06]}  Ra1+ {[%clk 0:02:06]} 18. Kd2 {[%clk 0:01:06]}  Na6 {[%clk 0:02:01]} 19. g3 {[%clk 0:00:58]}  Nb4 {[%clk 0:01:59]} 20. Bg2 {[%clk 0:00:58]}  Rxh1 {[%clk 0:01:58]} 21. Bxh1 {[%clk 0:00:58]}  Qa8 {[%clk 0:01:58]} 22. Nh4 {[%clk 0:00:50]}  Qa1 {[%clk 0:01:46]} 23. Nxf5 {[%clk 0:00:45]}  gxf5 {[%clk 0:01:46]} 24. Qc1 {[%clk 0:00:26]}  Qa5 {[%clk 0:01:42]} 25. Qc3 {[%clk 0:00:23]}  Ra8 {[%clk 0:01:41]} 26. Bf3 {[%clk 0:00:14]}  Qb6 {[%clk 0:01:33]} 27. Qe3 {[%clk 0:00:11]}  Kf8 {[%clk 0:01:28]} 28. Qh6+ {[%clk 0:00:09]}  Ke8 {[%clk 0:01:28]} 29. Bh5 {[%clk 0:00:09]}  Qa5 {[%clk 0:01:18]} 30. Ke3 {[%clk 0:00:07]}  Qa1 {[%clk 0:01:12]} 31. Rc2 {[%clk 0:00:04]}  Qd4+ {[%clk 0:01:09]} 32. Kf3 {[%clk 0:00:04]}  Qe4# {[%clk 0:01:10]} 0-1


[Site "https://www.chess.com"]